[Event "29th Czech Open-Rapid 2018"]
[Site "Pardubice"]
[Date "2018.07.19"]
[Round "4"]
[White "Gukesh, Dommaraju"]
[Black "Kulkarni, Chinmay"]
[Result "0-1"]
[ECO "B32"]
[WhiteElo "1519"]
[BlackElo "2290"]
[Annotator "NA"]
[PlyCount "134"]
[EventDate "2018.07.18"]
[EventType "swiss"]
[EventCountry "CZE"]
[SourceTitle "playchess.com"]
[Source "ChessBase"]
[SourceQuality "1"]
[TimeControl "900+10"]

1. e4 {[%emt 0:00:00]} c5 {[%emt 0:00:00]} 2. Nf3 {[%emt 0:00:00]} Nc6 {[%emt 0:00:13]} 3. d4 {[%emt 0:00:00]} cxd4 {[%emt 0:00:03]} 4. Nxd4 {[%emt 0:00:00]} Qb6 {[%emt 0:00:02]} 5. Nb3 {[%emt 0:00:33]} Nf6 {[%emt 0:00:03]} 6. Nc3 {[%emt 0:00:04]} e6 {[%emt 0:00:02]} 7. Be3 {[%emt 0:00:18]} Qc7 {[%emt 0:00:03]} 8. Be2 {[%emt 0:01:15]} a6 {[%emt 0:00:03]} 9. a4 {[%emt 0:00:12]} b6 {[%emt 0:00:01]} 10. O-O {[%emt 0:00:08]} Bb7 {[%emt 0:00:02]} 11. f4 {[%emt 0:01:15]} d6 {[%emt 0:00:02]} 12. Bf3 {[%emt 0:00:05]} Be7 {[%emt 0:00:10]} 13. Qe2 {[%emt 0:00:11]} O-O {[%emt 0:00:12]} 14. a5 {[%emt 0:00:52]} Nxa5 {[%emt 0:01:01]} 15. Nxa5 {[%emt 0:00:03]} bxa5 {[%emt 0:00:02]} 16. Qf2 {[%emt 0:00:15]} Nd7 {[%emt 0:02:17]} 17. Rfd1 {[%emt 0:00:57]} Rac8 {[%emt 0:00:13]} 18. Rd2 {[%emt 0:00:39]} Nc5 {[%emt 0:00:27]} 19. Bd4 {[%emt 0:00:34]} e5 {[%emt 0:00:51]} 20. Be3 {[%emt 0:00:42]} exf4 {[%emt 0:02:13]} 21. Bxf4 {[%emt 0:00:01]} Qb6 {[%emt 0:00:14]} 22. Rb1 {[%emt 0:01:07]} Rfd8 {[%emt 0:00:24]} 23. Be3 {[%emt 0:00:52]} Qc7 {[%emt 0:00:13]} 24. Bd4 {[%emt 0:00:24]} Bf8 {[%emt 0:01:33]} 25. Rf1 {[%emt 0:01:04]} Re8 {[%emt 0:01:37]} 26. Bg4 {[%emt 0:01:14]} Rb8 {[%emt 0:00:18]} 27. Bh5 {[%emt 0:01:07]} Re7 {[%emt 0:00:01]} 28. e5 {[%emt 0:00:01]} Rd7 {[%emt 0:02:50]} 29. Bxc5 {[%emt 0:01:27]} dxc5 {[%emt 0:00:01]} 30. Rxd7 {[%emt 0:00:03]} Qxd7 {[%emt 0:00:02]} 31. Qxf7+ {[%emt 0:00:43]} Qxf7 {[%emt 0:00:03]} 32. Bxf7+ {[%emt 0:00:01]} Kh8 {[%emt 0:00:01]} 33. Bd5 {[%emt 0:00:01]} Bxd5 {[%emt 0:01:53]} 34. Nxd5 {[%emt 0:00:01]} c4 {[%emt 0:00:02]} 35. e6 {[%emt 0:01:10]} Bc5+ {[%emt 0:00:01]} 36. Kh1 {[%emt 0:00:02]} Kg8 {[%emt 0:00:10]} 37. Re1 {[%emt 0:01:33]} Rxb2 {[%emt 0:01:45]} 38. e7 {[%emt 0:00:06]} Bxe7 {[%emt 0:00:01]} 39. Nxe7+ {[%emt 0:00:02]} Kf7 {[%emt 0:00:02]} 40. Nc6 {[%emt 0:00:11]} a4 {[%emt 0:00:07]} 41. Ne5+ {[%emt 0:00:28]} Kf6 {[%emt 0:00:02]} 42. Nxc4 {[%emt 0:00:12]} Rxc2 {[%emt 0:00:03]} 43. Ne3 {[%emt 0:00:01]} Ra2 {[%emt 0:00:28]} 44. Nd5+ {[%emt 0:00:30]} Kf7 {[%emt 0:00:09]} 45. Nc3 {[%emt 0:00:37]} Ra3 {[%emt 0:00:05]} 46. Rc1 {[%emt 0:00:07]} Ke6 {[%emt 0:00:18]} 47. Kg1 {[%emt 0:00:13]} Ke5 {[%emt 0:00:01]} 48. Kf2 {[%emt 0:00:04]} Kd4 {[%emt 0:00:28]} 49. Ne2+ {[%emt 0:00:08]} Kd3 {[%emt 0:00:14]} 50. Rd1+ {[%emt 0:00:01]} Kc4 {[%emt 0:00:13]} 51. Rd4+ {[%emt 0:00:13]} Kc5 {[%emt 0:00:40]} 52. Rd7 {[%emt 0:00:41]} Ra2 {[%emt 0:00:04]} 53. Ra7 {[%emt 0:00:35]} Kb6 {[%emt 0:00:06]} 54. Rxg7 {[%emt 0:00:02]} a3 {[%emt 0:00:09]} 55. Rxh7 {[%emt 0:00:26]} Rxe2+ {[%emt 0:00:20]} 56. Kxe2 {[%emt 0:00:09]} a2 {[%emt 0:00:02]} 57. Rh6+ {[%emt 0:00:02]} Ka5 {[%emt 0:00:31]} 58. Rh5+ {[%emt 0:00:02]} Kb4 {[%emt 0:00:14]} 59. Rh4+ {[%emt 0:00:01]} Kb3 {[%emt 0:00:14]} 60. Rh3+ {[%emt 0:00:06]} Kb2 {[%emt 0:00:04]} 61. Rd3 {[%emt 0:00:28]} a1=Q {[%emt 0:00:11]} 62. h4 {[%emt 0:00:02]} Qh1 {[%emt 0:00:06]} 63. g3 {[%emt 0:00:04]} Qg2+ {[%emt 0:00:08]} 64. Ke1 {[%emt 0:00:01]} Qe4+ {[%emt 0:00:06]} 65. Kd2 {[%emt 0:00:03]} a5 {[%emt 0:00:11]} 66. h5 {[%emt 0:00:05]} Qg2+ {[%emt 0:00:04]} 67. Ke1 {[%emt 0:00:01]} Qh1+ {[%emt 0:00:01]} 0-1

[Event "29th Czech Open-Rapid 2018"]
[Site "Pardubice"]
[Date "2018.07.19"]
[Round "4"]
[White "Vestfal, Jan"]
[Black "Pacl, Vaclav"]
[Result "1-0"]
[ECO "B07"]
[WhiteElo "1407"]
[BlackElo "2077"]
[Annotator "NA"]
[PlyCount "129"]
[EventDate "2018.07.18"]
[EventType "swiss"]
[EventCountry "CZE"]
[SourceTitle "playchess.com"]
[Source "ChessBase"]
[SourceQuality "1"]
[TimeControl "900+10"]

1. e4 {[%emt 0:04:14]} d6 {[%emt 0:00:00]} 2. d4 {[%emt 0:00:10]} Nf6 {[%emt 0:00:00]} 3. Nc3 {[%emt 0:00:02]} c6 {[%emt 0:00:00]} 4. Bg5 {[%emt 0:00:06]} Nbd7 {[%emt 0:00:01]} 5. Nf3 {[%emt 0:00:22]} e5 {[%emt 0:01:44]} 6. d5 {[%emt 0:00:25]} Be7 {[%emt 0:00:48]} 7. Bc4 {[%emt 0:00:54]} O-O {[%emt 0:01:53]} 8. O-O {[%emt 0:01:13]} Nb6 {[%emt 0:03:02]} 9. Bb3 {[%emt 0:00:10]} Bg4 {[%emt 0:00:03]} 10. h3 {[%emt 0:00:13]} Bh5 {[%emt 0:00:01]} 11. Bxf6 {[%emt 0:00:52]} Bxf6 {[%emt 0:00:09]} 12. g4 {[%emt 0:00:40]} Bg6 {[%emt 0:00:02]} 13. Re1 {[%emt 0:00:15]} c5 {[%emt 0:00:16]} 14. Nd2 {[%emt 0:00:37]} Bg5 {[%emt 0:01:20]} 15. Nc4 {[%emt 0:00:24]} Nxc4 {[%emt 0:01:23]} 16. Bxc4 {[%emt 0:00:02]} Bf4 {[%emt 0:00:07]} 17. Ne2 {[%emt 0:00:25]} Qg5 {[%emt 0:00:11]} 18. Nxf4 {[%emt 0:00:57]} exf4 {[%emt 0:00:04]} 19. f3 {[%emt 0:00:12]} Rae8 {[%emt 0:00:17]} 20. Qd2 {[%emt 0:00:26]} h5 {[%emt 0:00:40]} 21. Bd3 {[%emt 0:00:38]} hxg4 {[%emt 0:00:41]} 22. hxg4 {[%emt 0:00:12]} f6 {[%emt 0:01:03]} 23. Qh2 {[%emt 0:00:21]} Kf7 {[%emt 0:00:04]} 24. Bb5 {[%emt 0:00:29]} Rd8 {[%emt 0:00:10]} 25. Kf2 {[%emt 0:01:17]} Rh8 {[%emt 0:00:02]} 26. Qg2 {[%emt 0:00:06]} Rh4 {[%emt 0:00:13]} 27. Rh1 {[%emt 0:00:10]} Rdh8 {[%emt 0:00:00]} 28. Rxh4 {[%emt 0:00:21]} Qxh4+ {[%emt 0:00:02]} 29. Ke2 {[%emt 0:00:09]} a6 {[%emt 0:00:21]} 30. Bd7 {[%emt 0:00:11]} Ke7 {[%emt 0:00:40]} 31. Be6 {[%emt 0:00:05]} Be8 {[%emt 0:00:03]} 32. Rg1 {[%emt 0:00:24]} Bb5+ {[%emt 0:00:38]} 33. Kd1 {[%emt 0:00:51]} Qh3 {[%emt 0:00:41]} 34. g5 {[%emt 0:00:28]} Qxg2 {[%emt 0:00:03]} 35. gxf6+ {[%emt 0:00:03]} Kxf6 {[%emt 0:00:04]} 36. Rxg2 {[%emt 0:00:10]} Rh1+ {[%emt 0:00:01]} 37. Kd2 {[%emt 0:00:04]} Rf1 {[%emt 0:00:05]} 38. Bg4 {[%emt 0:00:10]} Ke5 {[%emt 0:00:24]} 39. c3 {[%emt 0:00:19]} Ra1 {[%emt 0:00:27]} 40. a3 {[%emt 0:00:18]} Bc4 {[%emt 0:00:12]} 41. Bh5 {[%emt 0:00:39]} Rh1 {[%emt 0:00:30]} 42. Rg6 {[%emt 0:00:34]} Rh2+ {[%emt 0:00:09]} 43. Kc1 {[%emt 0:00:03]} Rh1+ {[%emt 0:00:05]} 44. Kd2 {[%emt 0:00:09]} Rh2+ {[%emt 0:00:12]} 45. Ke1 {[%emt 0:00:31]} Bxd5 {[%emt 0:00:02]} 46. Rg5+ {[%emt 0:00:03]} Kf6 {[%emt 0:00:08]} 47. Rxd5 {[%emt 0:00:03]} g5 {[%emt 0:00:16]} 48. Rf5+ {[%emt 0:00:20]} Ke6 {[%emt 0:00:08]} 49. Bg4 {[%emt 0:00:27]} Rxb2 {[%emt 0:00:10]} 50. Rxc5+ {[%emt 0:00:26]} Ke7 {[%emt 0:00:12]} 51. Rxg5 {[%emt 0:00:05]} Rb3 {[%emt 0:00:06]} 52. Kd2 {[%emt 0:00:11]} Rxa3 {[%emt 0:00:02]} 53. Rg7+ {[%emt 0:00:02]} Kf6 {[%emt 0:00:05]} 54. Rxb7 {[%emt 0:00:03]} a5 {[%emt 0:00:08]} 55. Bd7 {[%emt 0:00:20]} Ra2+ {[%emt 0:00:01]} 56. Kc1 {[%emt 0:00:09]} Rf2 {[%emt 0:00:02]} 57. Bg4 {[%emt 0:00:05]} Ra2 {[%emt 0:00:04]} 58. Ra7 {[%emt 0:00:12]} Ke5 {[%emt 0:00:17]} 59. Kb1 {[%emt 0:00:09]} Ra4 {[%emt 0:00:01]} 60. Bd7 {[%emt 0:00:16]} Rc4 {[%emt 0:00:10]} 61. Rxa5+ {[%emt 0:00:11]} Kf6 {[%emt 0:00:05]} 62. Kc2 {[%emt 0:00:10]} Rc7 {[%emt 0:00:03]} 63. Bg4 {[%emt 0:00:09]} Rh7 {[%emt 0:00:02]} 64. Rf5+ {[%emt 0:00:05]} Kg6 {[%emt 0:00:04]} 65. Rxf4 {[%emt 0:00:08]} 1-0

[Event "29th Czech Open-Rapid 2018"]
[Site "Pardubice"]
[Date "2018.07.19"]
[Round "5"]
[White "Burdalev, Kirill"]
[Black "Harsha, Bharathakoti"]
[Result "0-1"]
[ECO "A40"]
[WhiteElo "2383"]
[BlackElo "2163"]
[Annotator "NA"]
[PlyCount "121"]
[EventDate "2018.07.18"]
[EventType "swiss"]
[EventCountry "CZE"]
[SourceTitle "playchess.com"]
[Source "ChessBase"]
[SourceQuality "1"]
[TimeControl "900+10"]

1. d4 {[%emt 0:00:00]} e6 {[%emt 0:00:21]} 2. Nf3 {[%emt 0:00:00]} d5 {[%emt 0:00:02]} 3. Bf4 {[%emt 0:00:05]} c5 {[%emt 0:00:09]} 4. e3 {[%emt 0:00:04]} Nc6 {[%emt 0:00:04]} 5. c3 {[%emt 0:00:12]} Bd6 {[%emt 0:00:12]} 6. Bg3 {[%emt 0:00:08]} Nf6 {[%emt 0:00:17]} 7. Nbd2 {[%emt 0:00:03]} O-O {[%emt 0:00:02]} 8. Bb5 {[%emt 0:00:09]} Be7 {[%emt 0:00:09]} 9. Ne5 {[%emt 0:00:29]} Qb6 {[%emt 0:00:46]} 10. Qa4 {[%emt 0:00:20]} Nxe5 {[%emt 0:00:35]} 11. dxe5 {[%emt 0:00:51]} Nh5 {[%emt 0:00:01]} 12. b3 {[%emt 0:01:46]} Qc7 {[%emt 0:00:41]} 13. Bd3 {[%emt 0:01:43]} g6 {[%emt 0:00:02]} 14. Nf3 {[%emt 0:00:22]} c4 {[%emt 0:01:37]} 15. bxc4 {[%emt 0:00:11]} Bd7 {[%emt 0:00:02]} 16. Qb3 {[%emt 0:00:27]} dxc4 {[%emt 0:00:01]} 17. Qxc4 {[%emt 0:00:49]} Qxc4 {[%emt 0:03:59]} 18. Bxc4 {[%emt 0:00:02]} Rfc8 {[%emt 0:00:00]} 19. Be2 {[%emt 0:02:17]} Nxg3 {[%emt 0:00:08]} 20. hxg3 {[%emt 0:00:01]} Rxc3 {[%emt 0:00:01]} 21. Nd4 {[%emt 0:00:01]} Rac8 {[%emt 0:00:39]} 22. O-O {[%emt 0:00:10]} R8c5 {[%emt 0:00:11]} 23. Nf3 {[%emt 0:02:18]} Bc6 {[%emt 0:01:23]} 24. Rfd1 {[%emt 0:00:15]} h5 {[%emt 0:00:27]} 25. Rab1 {[%emt 0:01:14]} b6 {[%emt 0:00:01]} 26. Rb3 {[%emt 0:01:02]} Rc2 {[%emt 0:01:19]} 27. Nd4 {[%emt 0:00:16]} Rxa2 {[%emt 0:00:02]} 28. Nxc6 {[%emt 0:00:21]} Rxc6 {[%emt 0:00:02]} 29. Bf3 {[%emt 0:00:15]} Rc7 {[%emt 0:00:02]} 30. Rbd3 {[%emt 0:00:16]} b5 {[%emt 0:00:16]} 31. Rd7 {[%emt 0:00:05]} Rac2 {[%emt 0:00:02]} 32. Be4 {[%emt 0:00:27]} R2c4 {[%emt 0:00:40]} 33. Rxc7 {[%emt 0:00:32]} Rxc7 {[%emt 0:00:01]} 34. Ra1 {[%emt 0:00:20]} b4 {[%emt 0:00:08]} 35. Kf1 {[%emt 0:00:06]} b3 {[%emt 0:01:28]} 36. Ke2 {[%emt 0:00:11]} Bb4 {[%emt 0:00:37]} 37. Ra6 {[%emt 0:01:13]} b2 {[%emt 0:00:26]} 38. Ra2 {[%emt 0:00:03]} Bc3 {[%emt 0:00:01]} 39. f4 {[%emt 0:00:37]} Rd7 {[%emt 0:01:13]} 40. Ra3 {[%emt 0:00:25]} Bb4 {[%emt 0:00:39]} 41. Ra2 {[%emt 0:01:33]} Rd2+ {[%emt 0:00:03]} 42. Kf3 {[%emt 0:00:02]} a5 {[%emt 0:00:09]} 43. g4 {[%emt 0:00:13]} hxg4+ {[%emt 0:00:07]} 44. Kxg4 {[%emt 0:00:02]} Rxg2+ {[%emt 0:00:02]} 45. Kf3 {[%emt 0:00:07]} Rd2 {[%emt 0:00:05]} 46. Bb1 {[%emt 0:00:11]} Kf8 {[%emt 0:01:32]} 47. Be4 {[%emt 0:00:05]} Ke7 {[%emt 0:00:02]} 48. Kg3 {[%emt 0:00:14]} Kd7 {[%emt 0:00:05]} 49. Kg4 {[%emt 0:00:25]} Kc7 {[%emt 0:01:01]} 50. Kg5 {[%emt 0:00:10]} Re2 {[%emt 0:00:29]} 51. Kf6 {[%emt 0:00:10]} Rxe3 {[%emt 0:00:02]} 52. Bc2 {[%emt 0:00:07]} Bc3 {[%emt 0:00:49]} 53. Kxf7 {[%emt 0:00:03]} Re1 {[%emt 0:00:22]} 54. Ra3 {[%emt 0:00:03]} Bd4 {[%emt 0:00:12]} 55. Rxa5 {[%emt 0:00:12]} b1=Q {[%emt 0:00:11]} 56. Bxb1 {[%emt 0:00:03]} Rxb1 {[%emt 0:00:01]} 57. Kxe6 {[%emt 0:00:17]} Rf1 {[%emt 0:00:16]} 58. Rd5 {[%emt 0:00:23]} Rxf4 {[%emt 0:00:05]} 59. Rd7+ {[%emt 0:00:04]} Kc6 {[%emt 0:00:04]} 60. Rg7 {[%emt 0:00:06]} Rg4 {[%emt 0:00:26]} 61. Kf6 0-1

[Event "29th Czech Open-Rapid 2018"]
[Site "Pardubice"]
[Date "2018.07.19"]
[Round "5"]
[White "Nun, Jiri"]
[Black "Claridge Hansen, William"]
[Result "0-1"]
[ECO "B27"]
[WhiteElo "2337"]
[BlackElo "2146"]
[Annotator "NA"]
[PlyCount "62"]
[EventDate "2018.07.18"]
[EventType "swiss"]
[EventCountry "CZE"]
[SourceTitle "playchess.com"]
[Source "ChessBase"]
[SourceQuality "1"]
[TimeControl "900+10"]

1. e4 c5 {[%emt 0:00:00]} 2. Nf3 {[%emt 0:00:00]} g6 {[%emt 0:00:00]} 3. c3 {[%emt 0:00:12]} d5 {[%emt 0:00:00]} 4. e5 {[%emt 0:00:39]} Nc6 {[%emt 0:00:09]} 5. d4 {[%emt 0:00:07]} Bg4 {[%emt 0:00:43]} 6. Bb5 {[%emt 0:01:19]} Rc8 {[%emt 0:01:49]} 7. h3 {[%emt 0:01:48]} Bxf3 {[%emt 0:00:36]} 8. Qxf3 {[%emt 0:00:02]} e6 {[%emt 0:02:29]} 9. O-O {[%emt 0:01:03]} Qb6 {[%emt 0:00:38]} 10. Bxc6+ {[%emt 0:00:11]} Rxc6 {[%emt 0:00:26]} 11. dxc5 {[%emt 0:00:09]} Bxc5 {[%emt 0:00:39]} 12. Nd2 {[%emt 0:00:09]} Ne7 13. b4 Qc7 {[%emt 0:03:05]} 14. bxc5 {[%emt 0:00:34]} Rxc5 {[%emt 0:00:01]} 15. Qf6 {[%emt 0:00:43]} Rg8 {[%emt 0:00:07]} 16. Bb2 {[%emt 0:00:55]} Nc6 {[%emt 0:00:26]} 17. Nf3 {[%emt 0:00:13]} g5 {[%emt 0:00:50]} 18. Rfe1 {[%emt 0:00:58]} Rg6 {[%emt 0:00:45]} 19. Qh8+ {[%emt 0:00:13]} Kd7 {[%emt 0:00:07]} 20. Qxh7 {[%emt 0:00:02]} Nd8 {[%emt 0:00:32]} 21. Nd4 {[%emt 0:00:24]} g4 {[%emt 0:00:36]} 22. Ba3 {[%emt 0:01:32]} Rc4 {[%emt 0:01:35]} 23. Bd6 {[%emt 0:00:11]} Qa5 {[%emt 0:00:24]} 24. Bb4 {[%emt 0:01:17]} Qa4 {[%emt 0:00:56]} 25. Nb3 {[%emt 0:00:36]} b6 {[%emt 0:00:14]} 26. h4 {[%emt 0:00:04]} a5 {[%emt 0:00:26]} 27. Bd6 {[%emt 0:00:10]} g3 {[%emt 0:00:16]} 28. f4 {[%emt 0:02:47]} Rxf4 {[%emt 0:00:17]} 29. Rf1 {[%emt 0:00:02]} Rgg4 {[%emt 0:00:58]} 30. Rxf4 {[%emt 0:00:11]} Qxf4 {[%emt 0:00:25]} 31. Qc2 {[%emt 0:00:49]} Qe3+ {[%emt 0:00:05]} 0-1

[Event "29th Czech Open-Rapid 2018"]
[Site "Pardubice"]
[Date "2018.07.19"]
[Round "5"]
[White "Zaitsev, Alexander"]
[Black "Vinklarek, Ondrej"]
[Result "1-0"]
[ECO "B53"]
[WhiteElo "2335"]
[BlackElo "2122"]
[Annotator "NA"]
[PlyCount "71"]
[EventDate "2018.07.18"]
[EventType "swiss"]
[EventCountry "CZE"]
[SourceTitle "playchess.com"]
[Source "ChessBase"]
[SourceQuality "1"]
[TimeControl "900+10"]

1. e4 {[%emt 0:00:00]} c5 {[%emt 0:00:00]} 2. Nf3 {[%emt 0:00:00]} d6 {[%emt 0:00:00]} 3. d4 {[%emt 0:00:00]} cxd4 {[%emt 0:00:00]} 4. Qxd4 {[%emt 0:00:00]} Nc6 {[%emt 0:00:33]} 5. Bb5 {[%emt 0:00:00]} Bd7 {[%emt 0:00:57]} 6. Bxc6 {[%emt 0:00:00]} Bxc6 {[%emt 0:00:30]} 7. Nc3 {[%emt 0:00:00]} e5 {[%emt 0:01:25]} 8. Qd3 {[%emt 0:00:02]} Be7 {[%emt 0:00:21]} 9. O-O {[%emt 0:00:20]} g5 {[%emt 0:02:31]} 10. Nd2 {[%emt 0:00:44]} h5 {[%emt 0:00:41]} 11. Nc4 {[%emt 0:00:16]} Qc7 {[%emt 0:03:05]} 12. b4 {[%emt 0:02:11]} b6 {[%emt 0:02:35]} 13. Rd1 {[%emt 0:00:54]} O-O-O {[%emt 0:00:16]} 14. Ne3 {[%emt 0:03:50]} Nh6 {[%emt 0:00:03]} 15. Ncd5 {[%emt 0:00:48]} Qb7 {[%emt 0:00:05]} 16. a4 {[%emt 0:01:29]} Ng4 {[%emt 0:01:23]} 17. Nf5 {[%emt 0:00:36]} Bf8 {[%emt 0:01:31]} 18. c4 {[%emt 0:01:19]} Bxd5 {[%emt 0:00:50]} 19. cxd5 {[%emt 0:00:19]} f6 {[%emt 0:00:49]} 20. a5 {[%emt 0:00:18]} Nh6 {[%emt 0:00:15]} 21. axb6 {[%emt 0:00:19]} axb6 {[%emt 0:00:16]} 22. Ne3 {[%emt 0:00:27]} Be7 {[%emt 0:00:12]} 23. Nc4 {[%emt 0:00:06]} Kd7 {[%emt 0:00:07]} 24. Be3 {[%emt 0:00:05]} Ke8 {[%emt 0:00:10]} 25. Nxb6 {[%emt 0:01:18]} Kf7 {[%emt 0:00:02]} 26. Nc4 {[%emt 0:01:29]} Rhf8 {[%emt 0:00:23]} 27. Ra7 {[%emt 0:00:27]} Qb8 {[%emt 0:00:02]} 28. Na5 {[%emt 0:00:10]} Rc8 {[%emt 0:00:23]} 29. Nc6 {[%emt 0:00:54]} Rxc6 {[%emt 0:00:01]} 30. dxc6 {[%emt 0:00:00]} Ng4 {[%emt 0:00:07]} 31. Qd5+ {[%emt 0:00:09]} Kg6 {[%emt 0:00:07]} 32. Rxe7 {[%emt 0:00:27]} Qxb4 {[%emt 0:00:01]} 33. c7 {[%emt 0:00:15]} Qa4 {[%emt 0:00:04]} 34. h3 {[%emt 0:00:11]} Nh6 {[%emt 0:00:21]} 35. Rc1 {[%emt 0:00:02]} Rc8 {[%emt 0:00:10]} 36. Qb7 {[%emt 0:00:09]} 1-0

[Event "29th Czech Open-Rapid 2018"]
[Site "Pardubice"]
[Date "2018.07.19"]
[Round "5"]
[White "Turner, Jan"]
[Black "Petr, Jan"]
[Result "1-0"]
[ECO "A01"]
[WhiteElo "2332"]
[BlackElo "2099"]
[Annotator "NA"]
[PlyCount "47"]
[EventDate "2018.07.18"]
[EventType "swiss"]
[EventCountry "CZE"]
[SourceTitle "playchess.com"]
[Source "ChessBase"]
[SourceQuality "1"]
[TimeControl "900+10"]

1. b3 {[%emt 0:00:00]} Nf6 {[%emt 0:00:10]} 2. Bb2 {[%emt 0:00:00]} d5 {[%emt 0:00:25]} 3. Nf3 {[%emt 0:00:00]} c5 {[%emt 0:00:05]} 4. e3 {[%emt 0:00:00]} Nc6 {[%emt 0:00:08]} 5. Bb5 {[%emt 0:00:02]} a6 {[%emt 0:00:08]} 6. Bxc6+ {[%emt 0:00:02]} bxc6 {[%emt 0:00:01]} 7. Ne5 {[%emt 0:00:02]} Qc7 {[%emt 0:00:15]} 8. O-O {[%emt 0:00:06]} e6 {[%emt 0:00:01]} 9. f4 {[%emt 0:00:02]} a5 {[%emt 0:00:43]} 10. a4 {[%emt 0:00:01]} Ba6 {[%emt 0:01:40]} 11. d3 {[%emt 0:00:03]} O-O-O {[%emt 0:00:08]} 12. Nd2 {[%emt 0:00:15]} h5 {[%emt 0:00:35]} 13. Ndf3 {[%emt 0:01:04]} Bd6 {[%emt 0:01:34]} 14. Qe1 {[%emt 0:00:08]} Ng4 {[%emt 0:00:16]} 15. Bc3 {[%emt 0:00:55]} f6 {[%emt 0:01:04]} 16. Bxa5 {[%emt 0:00:02]} Qb7 {[%emt 0:00:05]} 17. Bxd8 {[%emt 0:00:12]} Rxd8 {[%emt 0:00:08]} 18. h3 {[%emt 0:00:55]} fxe5 {[%emt 0:00:13]} 19. hxg4 {[%emt 0:00:02]} exf4 {[%emt 0:00:02]} 20. exf4 {[%emt 0:00:04]} Bxf4 {[%emt 0:00:04]} 21. Qxe6+ {[%emt 0:00:20]} Kb8 {[%emt 0:00:01]} 22. Nd4 {[%emt 0:00:33]} Bd6 {[%emt 0:00:18]} 23. Rf7 {[%emt 0:00:56]} Qb6 {[%emt 0:00:22]} 24. a5 {[%emt 0:00:05]} 1-0

[Event "29th Czech Open-Rapid 2018"]
[Site "Pardubice"]
[Date "2018.07.19"]
[Round "5"]
[White "Maltsevskyay, Aleksandra"]
[Black "Dimitrov, Dejan"]
[Result "1-0"]
[ECO "A25"]
[WhiteElo "2297"]
[BlackElo "2102"]
[Annotator "NA"]
[PlyCount "123"]
[EventDate "2018.07.18"]
[EventType "swiss"]
[EventCountry "CZE"]
[SourceTitle "playchess.com"]
[Source "ChessBase"]
[SourceQuality "1"]
[TimeControl "900+10"]

1. c4 {[%emt 0:00:00]} e5 {[%emt 0:00:00]} 2. Nc3 {[%emt 0:00:00]} Nc6 {[%emt 0:00:00]} 3. g3 {[%emt 0:00:10]} Bc5 {[%emt 0:00:00]} 4. Bg2 {[%emt 0:00:02]} a6 {[%emt 0:00:04]} 5. e3 {[%emt 0:00:05]} Nge7 {[%emt 0:00:04]} 6. Nge2 {[%emt 0:00:02]} d6 {[%emt 0:00:10]} 7. O-O {[%emt 0:01:14]} O-O {[%emt 0:00:08]} 8. a3 {[%emt 0:00:48]} Ba7 {[%emt 0:00:18]} 9. b4 {[%emt 0:00:15]} Rb8 {[%emt 0:00:58]} 10. d4 {[%emt 0:00:18]} exd4 {[%emt 0:00:47]} 11. exd4 {[%emt 0:00:15]} Nf5 {[%emt 0:01:41]} 12. c5 {[%emt 0:00:26]} dxc5 {[%emt 0:02:17]} 13. dxc5 {[%emt 0:00:04]} Ncd4 {[%emt 0:02:14]} 14. Nd5 {[%emt 0:03:22]} Nxe2+ {[%emt 0:01:23]} 15. Qxe2 {[%emt 0:00:02]} c6 {[%emt 0:00:35]} 16. Nc3 {[%emt 0:00:59]} Nd4 {[%emt 0:01:42]} 17. Qd1 {[%emt 0:00:16]} Be6 {[%emt 0:01:04]} 18. Bf4 {[%emt 0:00:15]} Bb3 {[%emt 0:00:58]} 19. Qd3 {[%emt 0:00:55]} Ne6 {[%emt 0:01:02]} 20. Bd6 {[%emt 0:00:35]} Rc8 {[%emt 0:01:28]} 21. Rab1 {[%emt 0:00:42]} Bxc5 {[%emt 0:00:51]} 22. bxc5 {[%emt 0:00:13]} Nxc5 {[%emt 0:00:02]} 23. Qd4 {[%emt 0:00:07]} Ne6 {[%emt 0:00:21]} 24. Qe5 {[%emt 0:00:39]} f6 {[%emt 0:00:17]} 25. Qe3 {[%emt 0:00:07]} Qxd6 {[%emt 0:00:11]} 26. Rxb3 {[%emt 0:00:02]} Nc5 {[%emt 0:00:26]} 27. Rd1 {[%emt 0:01:40]} Qe5 {[%emt 0:00:10]} 28. Qxe5 {[%emt 0:00:16]} fxe5 {[%emt 0:00:02]} 29. Rb2 {[%emt 0:00:09]} Rc7 {[%emt 0:00:12]} 30. Re2 {[%emt 0:00:15]} Re7 {[%emt 0:00:21]} 31. Ne4 {[%emt 0:01:04]} Ne6 {[%emt 0:00:09]} 32. Nd6 {[%emt 0:00:13]} Nc5 {[%emt 0:00:13]} 33. Rc1 {[%emt 0:00:30]} Nb3 {[%emt 0:00:10]} 34. Rce1 {[%emt 0:00:24]} Rd8 {[%emt 0:00:07]} 35. Nf5 {[%emt 0:00:40]} Ree8 {[%emt 0:00:10]} 36. h4 {[%emt 0:00:07]} g6 {[%emt 0:00:05]} 37. Nh6+ {[%emt 0:00:19]} Kg7 {[%emt 0:00:03]} 38. Ng4 {[%emt 0:00:01]} Nd4 {[%emt 0:00:10]} 39. Rxe5 {[%emt 0:00:17]} Rxe5 {[%emt 0:00:14]} 40. Rxe5 {[%emt 0:00:02]} h5 {[%emt 0:00:13]} 41. Ne3 {[%emt 0:00:10]} Kf6 {[%emt 0:00:10]} 42. Re4 {[%emt 0:00:32]} Ne2+ {[%emt 0:00:12]} 43. Kh2 {[%emt 0:00:02]} Nc3 {[%emt 0:00:08]} 44. Rf4+ {[%emt 0:00:38]} Kg7 {[%emt 0:00:07]} 45. g4 {[%emt 0:00:05]} hxg4 {[%emt 0:00:15]} 46. Rxg4 {[%emt 0:00:03]} Kh6 {[%emt 0:00:11]} 47. Rg3 {[%emt 0:00:30]} Ne2 {[%emt 0:00:10]} 48. Rf3 {[%emt 0:00:10]} Kg7 {[%emt 0:00:05]} 49. Bf1 {[%emt 0:00:44]} Nd4 {[%emt 0:00:03]} 50. Rg3 {[%emt 0:00:03]} Rh8 {[%emt 0:00:15]} 51. Kh3 {[%emt 0:00:16]} Ne6 {[%emt 0:00:09]} 52. Rg4 {[%emt 0:01:09]} Kf6 {[%emt 0:00:05]} 53. Bc4 {[%emt 0:00:16]} Nc5 {[%emt 0:00:19]} 54. f3 {[%emt 0:00:20]} b5 {[%emt 0:00:05]} 55. Ba2 {[%emt 0:00:12]} Nd3 {[%emt 0:00:11]} 56. Rd4 {[%emt 0:00:10]} Ne5 {[%emt 0:00:09]} 57. Rd6+ {[%emt 0:00:02]} Kg7 {[%emt 0:00:07]} 58. f4 {[%emt 0:00:08]} Nf3 {[%emt 0:00:04]} 59. Rd7+ {[%emt 0:00:08]} Kf8 {[%emt 0:00:17]} 60. Kg3 {[%emt 0:00:03]} Nxh4 {[%emt 0:00:09]} 61. Rd8+ {[%emt 0:00:15]} Kg7 {[%emt 0:00:05]} 62. Rxh8 1-0